Workbook

Sheet 1全
A1: 2025年9月农村低保“一卡通”补助市镇分担发放表
A2: 序号 | B2: 行政区划 | C2: 户数 | D2: 人数 | E2: 农村低保 | H2: 备注
E3: 小计 | F3: 市负担70% | G3: 镇负担30%
A4: 1 | B4: 汇龙镇 | C4: 200 | D4: 254 | E4: 222056.00 | F4: =E4*0.7 -> 155439.20 | G4: =E4*0.3 -> 66616.80
A5: 2 | B5: 南阳镇 | C5: 362 | D5: 480 | E5: 423300.00 | F5: =E5*0.7 -> 296310.00 | G5: =E5*0.3 -> 126990.00
A6: 3 | B6: 北新镇 | C6: 309 | D6: 381 | E6: 334603.00 | F6: =E6*0.7 -> 234222.10 | G6: 100380.90
A7: 4 | B7: 王鲍镇 | C7: 341 | D7: 423 | E7: 360617.00 | F7: 252431.90 | G7: 108185.10
A8: 5 | B8: 合作镇 | C8: 321 | D8: 421 | E8: 342118.00 | F8: 239482.60 | G8: 102635.40
A9: 6 | B9: 海复镇 | C9: 250 | D9: 367 | E9: 315858.00 | F9: 221100.60 | G9: 94757.40
A10: 7 | B10: 近海镇 | C10: 244 | D10: 288 | E10: 254753.00 | F10: 178327.10 | G10: 76425.90
A11: 8 | B11: 寅阳镇 | C11: 265 | D11: 358 | E11: 320826.00 | F11: 224578.20 | G11: 96247.80
A12: 9 | B12: 惠萍镇 | C12: 226 | D12: 276 | E12: =247225+437 -> 247662.00 | F12: 173363.40 | G12: 74298.60
A13: 10 | B13: 东海镇 | C13: 372 | D13: 463 | E13: 403470.00 | F13: 282429.00 | G13: 121041.00
A14: 11 | B14: 启隆镇 | C14: 1 | D14: 1 | E14: 885.00 | F14: 619.50 | G14: 265.50
A15: 12 | B15: 启东经济开发区 | C15: 57 | D15: 75 | E15: 65609.00 | F15: 45926.30 | G15: 19682.70
A16: 13 | B16: 圆陀角旅游度假区 | C16: 49 | D16: 66 | E16: 53678.00 | F16: 37574.60 | G16: 16103.40
B17: 合计 | C17: =SUM(C4:C16) -> 2997 | D17: =SUM(D4:D16) -> 3853 | E17: =SUM(E4:E16) -> 3345435.00 | F17: 2341804.50 | G17: 1003630.50

Sheet 吕四
A1: 2025年9月农村低保“一卡通”补助市镇分担发放表
A2: 序号 | B2: 行政区划 | C2: 户数 | D2: 人数 | E2: 农村低保 | H2: 备注
E3: 小计 | F3: 市负担0% | G3: 镇负担100%
A4: 1 | B4: 吕四港镇 | C4: 509 | D4: 669 | E4: 579970.00 | F4: 0.00 | G4: =E4 -> 579970.00
B16: 合计 | C16: =SUM(C4:C15) -> 509 | D16: =SUM(D4:D15) -> 669 | E16: =SUM(E4:E15) -> 579970.00 | F16: =SUM(F4:F15) -> 0.00 | G16: =SUM(G4:G15) -> 579970.00

Sheet Sheet3
